bitfinex-derivatives/quotes_SOLF0:USTF0_20241120
["timestamp","ask_amount","ask_price","bid_price","bid_amount"]
[1732117974940,12.11828464,238.3,238.23,2.0963]
[1732117975436,2.74,238.38,238.23,2.0963]
[1732117975936,2.0959,238.28,238.23,2.0963]
[1732117977039,2.74,238.38,238.2,2.74]
[1732117977040,12.11828464,238.33,238.2,2.74]
[1732117977234,12.11828464,238.33,238.21,1.2433]
[1732117978538,2.0957,238.31,238.21,1.2433]
[1732117979736,2.0957,238.31,238.24,2.0963]
[1732117980236,12.11828464,238.33,238.21,1.2433]
[1732117981242,2.0956,238.31,238.25,2.0961]
[1732117981435,12.11828464,238.33,238.21,1.2433]
[1732117982343,12.11828464,238.3,238.15,2.74]
[1732117982943,2.0961,238.26,238.19,2.0967]
[1732117983147,12.11828464,238.3,238.15,2.74]
[1732117983342,2.09216873,238.39,238.15,2.74]
[1732117983343,12.11828464,238.27,238.15,2.74]
[1732117983943,12.11828464,238.44,238.16,12.11828464]
[1732117983944,12.11828464,238.33,238.16,12.11828464]
[1732117984145,12.11828464,238.36,238.19,12.11828464]
[1732117984339,12.11828464,238.36,238.15,25.93981594]
[1732117984340,12.11828464,238.29,238.16,5.79995398]
[1732117984542,2.0963,238.24,238.18,2.0968]
[1732117984842,12.11828464,238.26,238.11,5.79995398]
[1732117985044,12.11828464,238.23,238.13,1.2736]
[1732117985948,2.0966,238.2,238.15,2.097]
[1732117986146,12.11828464,238.23,238.15,2.097]
[1732117986540,2.0963,238.24,238.17,2.0968]
[1732117986751,12.11828464,238.26,238.17,2.0968]
[1732117986952,12.11828464,238.26,238.15,2.74]
[1732117987757,2.0965,238.22,238.15,4.837]
[1732117987954,2.0965,238.22,238.15,2.74]
[1732117988255,12.11828464,238.26,238.15,2.74]
[1732117988449,12.11828464,238.26,238.11,12.11828464]
[1732117988645,12.11828464,238.21,238.02,17.39986196]
[1732117988846,12.11828464,238.12,238.0,5.79995398]
[1732117989053,12.11828464,238.12,237.97,1.1961]
[1732117989448,12.11828464,238.12,237.98,2.76]
[1732117990457,12.11828464,238.08,237.98,2.76]
[1732117990651,2.0979,238.06,237.98,2.76]
[1732117991253,2.0978,238.07,237.98,2.76]
[1732117991855,12.11828464,238.08,237.88,23.19981594]
[1732117992056,12.11828464,238.08,237.93,1.2219]
[1732117992360,12.11828464,237.99,237.84,2.76]
[1732117992556,14.21678464,237.99,237.91,2.0991]
[1732117992856,12.11828464,237.99,237.89,1.2776]
[1732117993860,12.11828464,237.99,237.9,2.0992]
[1732117994256,2.76,238.07,237.93,2.099]
[1732117994257,14.21658464,238.02,237.93,2.099]
[1732117994459,12.11828464,238.05,237.92,2.76]
[1732117995359,12.11828464,238.05,237.89,13.39588464]
[1732117995560,12.11828464,238.05,237.9,2.76]
[1732117995755,12.11828464,238.08,238.01,2.0983]
[1732117995957,12.11828464,238.11,238.01,2.0983]
[1732117996159,12.11828464,238.11,237.99,2.76]
[1732117996564,2.0975,238.1,237.99,2.76]
[1732117996862,12.11828464,238.11,237.99,2.76]
[1732117997656,12.11828464,238.14,237.99,2.76]
[1732117997864,12.11828464,238.17,238.01,12.11828464]
[1732117998055,2.0971,238.15,238.08,2.0976]
[1732117998259,2.0971,238.15,238.01,12.11828464]
[1732117998260,12.11828464,238.17,238.07,2.76]
[1732117998464,12.82873464,238.2,238.07,2.76]
[1732117998667,0.71045,238.2,238.08,1.2085]
[1732117999166,2.80705,238.2,238.12,2.0973]
[1732117999377,0.71045,238.2,238.08,1.2085]
[1732117999557,0.71045,238.2,238.1,12.11828464]
[1732118000058,0.71045,238.2,238.18,2.0968]
[1732118001565,0.71045,238.2,238.17,2.76]
[1732118001767,0.71045,238.2,238.11,1.262]
[1732118002061,0.71045,238.2,238.13,2.94]
[1732118002265,0.71045,238.2,238.13,5.0372]
[1732118003268,2.80715,238.2,238.13,5.0372]
[1732118003665,2.80715,238.2,238.08,1.2085]
[1732118003666,19.46788972,238.17,238.02,1.3137]
[1732118003863,2.0977,238.08,238.02,1.3137]
[1732118004266,19.46788972,238.12,238.02,1.3137]
[1732118004762,2.0977,238.08,238.02,1.3137]
[1732118004962,2.94,238.15,238.02,4.2537]
[1732118005765,19.46788972,238.16,238.02,4.2537]
[1732118006565,19.46788972,238.16,238.06,2.0978]
[1732118006960,2.0973,238.13,238.05,2.0978]
[1732118007167,19.46788972,238.12,238.02,1.3137]
[1732118007764,2.098,238.05,238.02,1.3137]
[1732118007960,19.46788972,238.12,238.02,1.3137]
[1732118008365,2.0976,238.09,238.02,1.3137]
[1732118008568,19.46788972,238.12,238.02,1.3137]
[1732118009066,19.46788972,238.08,237.97,2.5734]
[1732118009770,19.46788972,238.08,237.97,1.2823]
[1732118009973,19.46788972,238.04,237.92,1.2713]
[1732118010365,22.40788972,238.04,237.92,1.2713]
[1732118011574,2.0986,237.97,237.92,1.2713]
[1732118012173,2.0985,237.99,237.92,1.2713]
[1732118012569,22.40788972,238.04,237.92,1.2713]
[1732118012870,2.0983,238.01,237.92,1.2713]
[1732118013077,22.40788972,238.04,237.95,2.0988]
[1732118013470,2.0983,238.02,237.95,2.0988]
[1732118013671,22.40788972,238.04,237.95,2.0988]
[1732118013874,22.40788972,238.04,237.92,1.2713]
[1732118013875,22.40788972,238.04,237.92,3.3704]
[1732118014075,2.0986,237.98,237.92,3.3704]
[1732118014280,22.40788972,238.04,237.92,1.2713]
[1732118014575,22.40788972,238.04,237.96,2.0987]
[1732118015278,19.46788972,238.08,237.95,2.94]
[1732118015479,19.46788972,238.12,237.95,2.94]
[1732118015778,22.40788972,238.12,237.95,2.94]
[1732118016272,2.0979,238.06,238.0,2.0983]
[1732118016674,22.40788972,238.12,237.95,2.94]
[1732118016875,22.40788972,238.12,237.99,2.0984]
[1732118017177,22.40788972,238.12,237.95,2.94]
[1732118017379,22.40788972,238.12,238.01,2.0983]
[1732118017680,22.40788972,238.12,237.95,2.94]
[1732118017983,2.0975,238.1,238.0,2.0984]
[1732118018175,22.40788972,238.12,237.95,2.94]
[1732118018575,2.0977,238.08,238.0,2.0984]
[1732118018777,22.40788972,238.12,237.95,2.94]
[1732118019480,2.0978,238.07,237.95,2.94]
[1732118019980,2.0978,238.07,237.95,7.33000681]
[1732118020181,2.0978,238.07,237.95,2.94]
[1732118020379,2.0978,238.07,237.95,13.06168261]
[1732118020582,2.0978,238.07,237.96,5.72877989]
[1732118020779,2.0978,238.07,237.95,25.85511957]
[1732118020979,2.0978,238.07,237.96,10.12185935]
[1732118021179,2.0978,238.07,237.95,25.85511957]
[1732118021380,2.0978,238.07,237.96,10.12403947]
[1732118022381,2.0978,238.07,238.01,2.0983]
[1732118022584,19.46788972,238.12,237.97,5.72877989]
[1732118023080,2.0976,238.09,237.97,22.91511957]
[1732118023384,19.46788972,238.12,237.98,10.12686439]
[1732118023580,2.0975,238.1,237.98,22.91511957]
[1732118023777,19.46788972,238.12,237.99,1.2834]
[1732118023973,19.46788972,238.12,237.99,11.41106132]
[1732118024175,19.46788972,238.16,238.0,4.39849217]
[1732118024375,19.46788972,238.16,238.0,7.02057989]
[1732118024684,2.0973,238.12,238.01,5.72877989]
[1732118024874,2.0973,238.12,238.02,2.94]
[1732118025080,2.0973,238.12,238.05,2.0979]
[1732118025281,2.0973,238.12,238.03,1.3157]
[1732118026475,2.0973,238.12,238.06,2.0977]
[1732118026975,2.0972,238.13,238.03,1.3157]
[1732118027178,12.18117151,238.17,238.03,1.3157]
[1732118027578,2.097,238.15,238.03,1.3157]
[1732118027888,2.097,238.15,238.09,2.0975]
[1732118029087,2.097,238.15,238.03,7.04447989]
[1732118029887,2.097,238.15,238.09,2.0975]
[1732118030780,2.097,238.15,238.1,2.0974]
[1732118031082,2.097,238.15,238.03,1.3157]
[1732118031282,2.097,238.15,238.09,2.0975]
[1732118031479,2.0972,238.13,238.03,1.3157]
[1732118031685,12.18117151,238.17,238.03,1.3157]
[1732118032487,12.18117151,238.17,238.06,2.0978]
[1732118033092,30.22,238.4,238.03,1.3157]
[1732118033290,12.18117151,238.17,238.03,1.3157]
[1732118033791,2.0973,238.13,238.07,2.0977]
[1732118034084,2.0973,238.13,238.03,1.3157]
[1732118034485,2.0971,238.14,238.08,2.0976]
[1732118034886,12.18117151,238.17,238.08,2.0976]
[1732118035083,2.0972,238.14,238.08,2.0976]
[1732118035887,2.0972,238.14,238.09,2.0975]
[1732118037695,12.18117151,238.17,238.03,1.3157]
[1732118037893,12.18117151,238.2,238.04,12.18117151]
[1732118038090,12.18117151,238.23,238.07,12.18117151]
[1732118038790,0.62667,238.27,238.13,12.18117151]
[1732118038991,12.18117151,238.26,238.14,6.6821]
[1732118039596,2.0963,238.23,238.18,2.0967]
[1732118039791,12.18117151,238.26,238.14,6.6821]
[1732118040689,0.62667,238.27,238.14,6.6821]
[1732118041090,2.72267,238.27,238.14,6.6821]
[1732118041292,2.096,238.27,238.14,6.6821]
[1732118041496,2.096,238.27,238.2,2.0965]
[1732118041996,2.096,238.27,238.14,6.6821]
[1732118042193,2.096,238.27,238.21,2.0964]
[1732118042397,12.18117151,238.29,238.21,2.0964]
[1732118042599,2.0961,238.26,238.21,2.0964]
[1732118043195,2.0963,238.23,238.18,2.0967]
[1732118043393,12.18117151,238.26,238.18,2.0967]
[1732118043994,12.18117151,238.26,238.19,2.0966]
[1732118044996,2.096,238.27,238.14,6.6821]
[1732118045493,2.096,238.27,238.22,2.0964]
[1732118045893,2.096,238.27,238.21,2.84]
[1732118046092,2.096,238.27,238.21,4.9365]
[1732118046396,2.096,238.27,238.21,2.84]
[1732118047298,2.0961,238.26,238.21,2.84]
[1732118047900,12.18117151,238.29,238.22,2.0964]
[1732118048201,2.096,238.27,238.22,2.0964]
[1732118048795,2.096,238.27,238.21,2.84]
[1732118048997,2.096,238.27,238.23,2.0963]
[1732118049400,12.18117151,238.29,238.14,3.8221]
[1732118049701,12.18117151,238.29,238.13,12.18117151]
[1732118049702,12.18117151,238.15,237.97,2.84]
[1732118049902,12.18117151,238.15,238.04,1.2479]
[1732118051102,2.0974,238.12,238.04,1.2479]
[1732118051307,2.0974,238.12,238.05,2.86]
[1732118051907,2.0972,238.13,238.05,4.9579]
[1732118053210,12.18117151,238.21,238.05,15.04117151]
[1732118053411,12.18117151,238.24,238.08,12.18117151]
[1732118053711,12.18117151,238.24,238.09,1.2253]
[1732118054303,12.18117151,238.24,238.07,2.13213902]
[1732118054304,12.18117151,238.14,237.99,5.7350689]
[1732118054611,12.18117151,238.18,238.01,1.2757]
[1732118055007,12.18117151,238.18,238.02,2.86]
[1732118055310,2.0974,238.11,238.04,2.098]
[1732118055505,12.18117151,238.14,238.02,2.86]
[1732118056312,2.0974,238.11,238.02,2.86]
[1732118056512,12.18117151,238.14,238.02,2.86]
[1732118057209,12.18117151,238.14,238.01,1.2757]
[1732118057210,12.18117151,238.11,238.01,1.2757]
[1732118057505,12.18117151,238.11,238.02,2.86]
[1732118057904,2.0977,238.08,238.02,2.86]
[1732118059616,12.18117151,238.18,238.02,2.86]
[1732118060614,2.0973,238.13,238.02,2.86]
[1732118061006,12.18117151,238.11,238.02,2.86]
[1732118061205,12.18117151,238.14,238.02,2.86]
[1732118061716,2.0975,238.1,238.02,2.86]
[1732118062516,12.18117151,238.14,238.01,1.2757]
[1732118062912,2.0975,238.1,238.01,1.2757]
[1732118064606,12.18117151,238.14,238.01,1.2757]
[1732118066507,2.0972,238.13,238.01,1.2757]
[1732118066811,4.1921,238.27,238.02,12.18117151]
[1732118067010,12.18117151,238.2,238.05,12.18117151]
[1732118067215,2.097,238.16,238.1,2.0974]
[1732118067516,2.097,238.16,238.11,2.86]
[1732118067913,12.18117151,238.2,238.11,2.86]
[1732118068210,2.0969,238.17,238.11,4.9573]
[1732118068915,2.0969,238.17,238.11,2.86]
[1732118069310,14.27807151,238.17,238.01,22.9402756]
[1732118069512,12.18117151,238.11,237.97,5.7350689]
[1732118069710,12.18117151,238.11,237.96,17.2052067]
[1732118069711,12.18117151,238.11,237.96,22.9402756]
[1732118070014,2.0976,238.08,237.97,4.3754422]
[1732118070209,12.18117151,238.11,237.96,5.7350689]
[1732118070409,2.86,238.18,237.97,12.18117151]
[1732118070616,12.18117151,238.14,237.97,12.18117151]
[1732118070812,12.18117151,238.14,237.98,1.1965]
[1732118071012,12.18117151,238.11,237.98,1.1965]
[1732118071311,2.0975,238.09,237.98,1.1965]
[1732118071508,2.0975,238.09,238.01,2.0982]
[1732118071708,2.0975,238.09,238.02,2.86]
[1732118071912,2.0977,238.07,238.02,2.86]
[1732118072216,12.18117151,238.11,238.02,2.86]
[1732118072520,2.0978,238.07,238.0,2.0983]
[1732118072712,2.0978,238.07,237.99,2.86]
[1732118072907,2.0978,238.07,238.01,2.0982]
[1732118073517,2.0978,238.07,238.02,2.0982]
[1732118075719,2.0978,238.07,238.01,2.0982]
[1732118075917,12.18117151,238.11,238.01,2.0982]
[1732118076220,2.0978,238.06,238.01,2.0982]
[1732118076417,2.0978,238.06,237.99,2.86]
[1732118076619,2.0978,238.06,238.0,2.0983]
[1732118076920,2.0978,238.06,237.99,2.86]
[1732118077119,2.0978,238.07,238.01,2.0982]
[1732118077916,2.0976,238.09,238.04,2.0979]
[1732118078116,10.15441869,238.13,237.99,2.86]
[1732118078421,10.15441869,238.13,238.0,1.2284]
[1732118078719,10.15441869,238.13,238.0,4.0884]
[1732118079318,2.0974,238.11,238.0,4.0884]
[1732118080414,2.0974,238.11,238.06,2.0978]
[1732118080616,2.0974,238.11,238.0,4.0884]
[1732118081020,2.0976,238.09,238.0,4.0884]
[1732118081620,2.0977,238.08,238.02,2.0981]
[1732118082420,2.0976,238.09,238.03,2.098]
[1732118083717,10.15441869,238.12,238.03,2.098]
[1732118084019,2.0976,238.09,238.03,2.098]
[1732118084422,10.15441869,238.12,238.03,2.098]
[1732118084423,2.0976,238.08,238.03,2.098]
[1732118085320,12.25161869,238.12,238.06,2.0977]
[1732118085921,2.0972,238.14,238.08,2.0976]
[1732118086123,10.15441869,238.16,238.03,1.2335]
[1732118086323,2.0969,238.16,238.1,2.0973]
[1732118086526,2.0969,238.16,238.09,2.86]
[1732118086733,0.65808,238.26,238.09,2.86]
[1732118086734,10.15441869,238.22,238.09,2.86]
[1732118087227,10.15441869,238.22,238.1,1.267]
[1732118087826,0.65808,238.26,238.1,1.267]
[1732118087827,10.15441869,238.25,238.1,1.267]
[1732118088222,10.15441869,238.22,238.1,1.267]
[1732118090229,2.0966,238.19,238.13,2.0972]
[1732118091727,10.15441869,238.22,238.1,1.267]
[1732118091927,2.0964,238.22,238.15,2.0969]
[1732118092133,2.0964,238.22,238.16,2.74]
[1732118092329,10.15441869,238.28,238.16,2.74]
[1732118092531,2.0962,238.24,238.18,2.0966]
[1732118094432,10.15441869,238.25,238.17,1.2289]
[1732118094731,10.15441869,238.22,238.17,1.2289]
[1732118095532,10.15441869,238.22,238.14,2.74]
[1732118095735,2.0965,238.21,238.14,4.8371]
[1732118095937,10.15441869,238.22,238.14,4.8371]
[1732118096830,10.15441869,238.22,238.14,2.74]
[1732118097536,2.0969,238.16,238.11,1.2412]
[1732118097732,10.15441869,238.18,238.11,1.2412]
[1732118098040,12.25151869,238.14,238.07,2.0977]
[1732118098238,10.15441869,238.14,238.05,2.74]
[1732118099141,2.0972,238.13,238.06,2.0977]
[1732118099340,10.15441869,238.14,238.06,4.8377]
[1732118099730,10.15441869,238.2,238.06,2.74]
[1732118100541,10.15441869,238.23,238.07,10.15441869]
[1732118101134,2.0965,238.21,238.11,2.0973]
[1732118101340,10.15441869,238.23,238.07,10.15441869]
[1732118101635,2.0964,238.22,238.15,2.0969]
[1732118101837,2.0964,238.22,238.16,2.74]
[1732118102242,2.0966,238.2,238.16,2.74]
[1732118102445,2.0966,238.2,238.06,19.32098132]
[1732118102446,2.74,238.22,238.03,1.2412]
[1732118102641,10.15441869,238.16,238.03,1.2412]
[1732118102848,2.0973,238.11,238.04,2.0979]
[1732118103049,2.0973,238.11,238.04,4.8379]
[1732118103249,2.0973,238.11,238.04,2.74]
[1732118104239,2.0972,238.13,238.07,2.0977]
[1732118104446,10.15441869,238.16,238.04,2.74]
[1732118105041,2.0973,238.12,238.06,2.0978]
[1732118105445,2.0973,238.12,238.07,2.0977]
[1732118105848,2.0974,238.11,238.04,2.74]
[1732118106547,2.0972,238.13,238.06,2.0978]
[1732118106943,10.15441869,238.16,238.04,2.74]
[1732118107644,10.15441869,238.19,238.04,2.74]
[1732118108342,2.0968,238.17,238.11,2.0973]
[1732118108744,2.74,238.28,238.12,2.74]
[1732118109046,10.15441869,238.15,238.02,1.1955]
[1732118109242,10.15441869,238.15,238.02,2.4615]
[1732118109847,2.0975,238.09,238.04,2.0979]
[1732118110445,10.15441869,238.15,238.02,2.4615]
[1732118111143,2.0972,238.13,238.07,2.0976]
[1732118111852,2.0973,238.12,238.06,2.74]
[1732118112446,2.0973,238.12,238.07,2.0977]
[1732118113144,10.15441869,238.15,238.06,2.74]
[1732118113344,2.0971,238.15,238.09,2.0975]
[1732118113542,2.0971,238.15,238.06,2.74]
[1732118113746,10.15441869,238.18,238.06,2.74]
[1732118113949,2.0969,238.16,238.1,2.0973]
[1732118114353,12.25121869,238.18,238.12,2.0972]
[1732118114647,12.25121869,238.18,238.06,2.74]
[1732118114648,12.56,238.36,238.13,2.74]
[1732118114851,10.15441869,238.28,238.14,2.74]
[1732118115047,2.0964,238.23,238.18,2.0966]
[1732118115242,2.0964,238.23,238.14,2.74]
[1732118115548,10.15441869,238.28,238.14,2.74]
[1732118115747,10.15441869,238.28,238.17,2.0967]
[1732118116052,10.15441869,238.28,238.14,2.74]
[1732118116352,10.15441869,238.21,238.1,2.74]
[1732118116552,2.74,238.27,238.1,2.74]
[1732118116553,10.15441869,238.18,238.1,2.74]
[1732118117050,10.15441869,238.21,238.1,2.74]
[1732118117551,2.0968,238.17,238.12,2.0972]
[1732118118448,10.15441869,238.21,238.1,2.74]
[1732118120351,2.0968,238.17,238.13,2.0971]
[1732118120847,2.0967,238.18,238.1,2.74]
[1732118121147,10.15441869,238.21,238.1,2.74]
[1732118121348,2.0966,238.19,238.1,2.74]
[1732118122448,10.15441869,238.21,238.1,2.74]
[1732118122649,10.15441869,238.21,238.11,2.0972]
[1732118123049,2.0969,238.17,238.11,2.0972]
[1732118123246,10.15441869,238.21,238.12,2.0972]
[1732118123652,2.0969,238.17,238.12,2.0972]
[1732118125348,10.15441869,238.21,238.09,2.0975]
[1732118125548,10.15441869,238.21,238.05,2.86]
[1732118126257,2.0972,238.13,238.08,2.0975]
[1732118126449,2.0972,238.13,238.05,2.86]
[1732118127554,2.0969,238.17,238.09,2.0974]
[1732118127756,2.0969,238.17,238.05,2.86]
[1732118127952,10.15441869,238.21,238.05,2.86]
[1732118128156,2.0971,238.15,238.09,2.0975]
[1732118128354,10.15441869,238.21,238.09,2.0975]
[1732118128554,10.15441869,238.21,238.05,2.86]
[1732118128858,2.0973,238.11,238.03,2.86]
[1732118129158,2.0973,238.11,238.02,2.4615]
[1732118129455,2.0974,238.1,238.05,2.0978]
[1732118130158,10.15441869,238.13,238.02,2.4615]
[1732118130458,10.15441869,238.13,238.02,1.266]
[1732118131357,2.0979,238.06,238.0,2.0983]
[1732118131558,10.15441869,238.09,237.96,2.592]
[1732118131754,10.15441869,238.09,237.97,2.86]
[1732118133964,2.0978,238.06,237.99,2.0983]
[1732118134156,2.0978,238.06,237.97,2.86]
[1732118135061,2.098,238.04,237.97,4.9585]
[1732118135252,2.098,238.04,237.97,2.86]
[1732118135657,10.15441869,238.09,237.97,2.86]
[1732118135859,2.0979,238.05,237.99,2.0984]
[1732118136058,10.15441869,238.09,237.96,2.592]
[1732118136755,2.0979,238.05,237.98,2.0984]
[1732118138061,2.0979,238.05,237.96,2.592]
[1732118138365,2.0979,238.05,237.99,2.0983]
[1732118138861,10.15441869,238.06,237.96,1.2668]
[1732118139254,2.86,238.12,237.96,1.2668]
[1732118139457,10.15645755,238.09,237.98,2.0984]
[1732118139659,10.15645755,238.09,237.96,1.2668]
[1732118139960,2.0981,238.03,237.97,2.0985]
[1732118140155,10.15645755,238.09,237.96,1.2668]
[1732118140563,2.098,238.04,237.99,2.0984]
[1732118140861,2.098,238.04,237.96,1.2668]
[1732118141158,2.098,238.04,237.99,2.0983]
[1732118142359,10.15645755,238.09,238.01,2.0982]
[1732118142559,10.15645755,238.09,237.96,1.2668]
[1732118142761,10.15645755,238.09,238.0,2.0982]
[1732118142963,2.0979,238.05,238.0,2.0982]
[1732118143263,2.0979,238.05,237.96,1.2668]
[1732118143564,2.098,238.04,237.96,1.2668]
[1732118144159,2.098,238.04,238.0,2.0983]
[1732118144353,10.15645755,238.09,237.96,1.2668]
[1732118144560,10.15645755,238.09,237.96,11.42325755]
[1732118145163,2.0978,238.06,237.96,11.42325755]
[1732118145568,2.0977,238.07,237.99,2.0983]
[1732118145865,2.0977,238.07,237.98,2.86]
[1732118146261,10.15645755,238.09,237.98,2.86]
[1732118146865,2.098,238.04,237.99,2.0983]
[1732118147662,2.098,238.04,238.0,2.0983]
[1732118148065,2.098,238.04,237.98,2.86]
[1732118148266,2.098,238.04,237.99,2.0984]
[1732118148462,2.0978,238.05,237.96,1.2668]
[1732118149166,2.0979,238.04,237.99,2.0983]
[1732118149969,2.0979,238.05,238.0,2.0983]
[1732118154475,10.15621564,238.1,238.0,2.0983]
[1732118154476,2.0979,238.04,238.0,2.0983]
[1732118154980,2.0979,238.04,237.96,1.2668]
[1732118155574,2.0979,238.04,237.99,2.0983]
[1732118155975,2.0979,238.04,237.96,1.2668]
[1732118156378,8.59822817,238.05,238.0,2.0982]
[1732118157178,8.59822817,238.05,238.01,2.0982]
[1732118157384,12.56,238.2,237.99,6.50032817]
[1732118157572,2.0977,238.08,238.01,6.50032817]
[1732118158175,2.0973,238.12,238.05,6.50032817]
[1732118158376,6.50032817,238.14,238.05,6.50032817]
[1732118159074,6.50032817,238.12,238.08,2.0976]
[1732118159882,6.50032817,238.12,238.09,2.0975]
[1732118161179,2.0973,238.12,238.07,2.0976]
[1732118161387,2.0973,238.12,237.99,15.88707966]
[1732118161388,10.15201076,238.14,237.98,22.9402756]
[1732118161584,10.15201076,238.14,237.99,2.66]
[1732118162480,10.15201076,238.17,238.0,10.15201076]
[1732118162787,2.0972,238.13,238.0,10.15201076]
[1732118162985,2.0972,238.13,238.09,2.0975]
[1732118163480,10.15201076,238.17,238.09,2.0974]
[1732118163782,10.15201076,238.17,238.05,2.66]
[1732118164285,10.15201076,238.17,238.06,1.2677]
[1732118164480,10.15201076,238.17,238.06,2.5788]
[1732118165282,2.0969,238.16,238.06,2.5788]
[1732118165881,2.097,238.15,238.06,2.5788]
[1732118166087,10.15201076,238.17,238.06,2.5788]
[1732118166783,2.0971,238.14,238.1,2.0973]
[1732118166979,10.15201076,238.17,238.06,2.5788]
[1732118167783,2.0971,238.13,238.09,2.0974]
[1732118167979,10.15201076,238.17,238.06,2.5788]
[1732118168279,2.0971,238.14,238.06,2.5788]
[1732118168880,2.0971,238.14,238.09,2.0974]
[1732118169283,2.0972,238.13,238.09,2.0974]
[1732118170087,10.15201076,238.21,238.06,12.73081076]
[1732118170283,10.15201076,238.21,238.06,13.98841076]
[1732118170687,2.0968,238.18,238.13,2.0971]
[1732118171284,10.15201076,238.24,238.11,2.66]
[1732118171586,10.15201076,238.28,238.12,10.15201076]
[1732118172088,2.0963,238.23,238.19,2.0966]
[1732118172296,2.0963,238.23,238.12,10.15201076]
[1732118172794,10.15201076,238.28,238.12,10.15201076]
[1732118172993,2.0964,238.22,238.11,2.66]
[1732118173298,10.15201076,238.28,238.16,2.0968]
[1732118173490,2.0963,238.23,238.17,1.2342]
[1732118173891,10.15201076,238.25,238.17,1.2342]
[1732118174092,2.0964,238.22,238.18,2.0967]
[1732118174295,10.15201076,238.25,238.17,1.2342]
[1732118174498,10.15201076,238.25,238.17,3.3309]
[1732118174700,2.0965,238.21,238.17,3.3309]
[1732118175292,2.0965,238.21,238.18,2.0967]
[1732118175690,2.0964,238.22,238.18,2.0967]
[1732118176295,10.15201076,238.25,238.18,2.0967]
[1732118176499,2.0964,238.21,238.18,2.0967]
[1732118177298,10.15201076,238.25,238.18,2.0967]
[1732118178107,10.15201076,238.25,238.17,3.3309]
[1732118178307,10.15201076,238.25,238.17,1.2342]
[1732118178507,2.0964,238.22,238.17,1.2342]
[1732118178700,10.15201076,238.25,238.18,2.0967]
[1732118178906,2.0964,238.22,238.18,2.0967]
[1732118179610,10.15201076,238.25,238.18,2.0967]
[1732118179811,2.0964,238.21,238.18,2.0967]
[1732118180006,10.15201076,238.25,238.17,1.2342]
[1732118180209,10.15201076,238.25,238.19,2.0966]
[1732118180511,2.0964,238.22,238.17,1.2342]
[1732118180909,2.0963,238.23,238.19,2.0966]
[1732118181208,0.61435,238.29,238.17,3.8542]
[1732118181915,0.61435,238.29,238.17,5.0495]
[1732118182107,2.0959,238.27,238.22,2.0963]
[1732118182413,0.61435,238.29,238.22,2.0963]
[1732118182705,2.096,238.26,238.22,2.0963]
[1732118183309,0.61435,238.29,238.17,5.0495]
[1732118183507,2.096,238.27,238.17,5.0495]
[1732118184214,2.096,238.27,238.22,2.0963]
[1732118184504,0.61435,238.29,238.17,5.0495]
[1732118184707,0.61435,238.29,238.21,6.48721228]
[1732118185507,2.71005,238.29,238.21,6.48721228]
[1732118186204,2.71005,238.29,238.24,2.0962]
[1732118187014,6.48721228,238.28,238.24,2.0962]
[1732118187309,6.48721228,238.28,238.18,1.2454]
[1732118187515,8.58331228,238.26,238.18,1.2454]
[1732118187705,20.9727821,238.36,238.17,2.4295]
[1732118187706,6.48721228,238.24,238.17,2.4295]
[1732118187916,6.48721228,238.24,238.17,5.0495]
[1732118188410,2.0962,238.26,238.2,2.0966]
[1732118188606,6.48721228,238.28,238.2,6.48721228]
[1732118189006,2.0961,238.27,238.22,2.0964]
[1732118189211,6.48721228,238.28,238.18,6.48721228]
[1732118189907,8.58311228,238.29,238.2,6.48721228]
[1732118190315,6.48721228,238.29,238.2,6.48721228]
[1732118191017,2.0959,238.28,238.24,2.0963]